Cogmind - Beta 14 @@@ ROGUE MODE // 2024.11.08 @ 11:53:47 Player: Fangrelle Result: Destroyed by S-10 Pest with Light Assault Rifle Performance ------------- Evolutions (0) 0 Regions Visited (2) 400 Robots Destroyed (28) 140 Value Destroyed (579) 579 Prototype IDs (0) 0 Alien Tech Used (0) 0 Bonus (0) 0 TOTAL SCORE: 1119 Bonus ------- None Cogmind --------- Core Integrity 0/250 Matter 107/300 Energy 125/125 System Corruption 0% Temperature Cool (84) Movement Treading (480) Ox4 Location -10/Mines Parts ------- > --- POWER (1) -------- Light Ion Engine > --- PROPULSION (2) --- Light Treads > --- UTILITY (2) ------ Huge Storage Unit Improved Targeting Computer > --- WEAPON (2) ------- Particle Gun Mining Claw > --- INVENTORY (25) --- Light Ion Engine High-capacity Storage Unit High-capacity Matter Pod (43) Machine Analyzer Visual Processing Unit Visual Processing Unit Signal Interpreter Improved Targeting Computer Improved Targeting Computer Improved Targeting Computer Power Shielding Propulsion Shielding Shield Generator Shield Generator Shield Generator Shield Generator Tractor Beam Tractor Beam Tractor Beam Datajack Peak State ------------ > --- POWER ------------ Light Ion Engine > --- PROPULSION ------- Light Treads Wheel > --- UTILITY ---------- Huge Storage Unit Improved Targeting Computer > --- WEAPON ----------- EM Pulse Gun Grenade Launcher > --- INVENTORY -------- Light Ion Engine Light Treads High-capacity Storage Unit High-capacity Matter Pod Machine Analyzer Visual Processing Unit Visual Processing Unit Signal Interpreter Improved Targeting Computer Improved Targeting Computer Improved Targeting Computer Power Shielding Propulsion Shielding Shield Generator Shield Generator Shield Generator Shield Generator Tractor Beam Tractor Beam Tractor Beam Datajack Mining Claw [Rating: 11] Favorites ----------- Power Light Ion Engine Engine Light Ion Engine Propulsion Light Treads Treads Light Treads Wheel Wheel Utility Improved Targeting Computer Storage Huge Storage Unit Processor Improved Targeting Computer Weapon EM Pulse Gun Energy Gun EM Pulse Gun Launcher Grenade Launcher Slashing Weapon Mining Claw Build | -11 -10 -10 ------- Run | Yrd Mat Min Slots Evolved . | . . . Power . | . . . Propulsion . | . . . Utility . | . . . Weapon . | . . . Parts Attached 29 | 8 15 6 Power 2 | 1 . 1 Engine 2 | 1 . 1 Core . | . . . Reactor . | . . . Propulsion 6 | 4 1 1 Treads 4 | 2 1 1 Leg . | . . . Wheel 2 | 2 . . Hover . | . . . Flight . | . . . Utility 6 | 1 5 . Device . | . . . Storage 4 | 1 3 . Processor 2 | . 2 . Hackware . | . . . Protection . | . . . Artifact . | . . . Weapon 15 | 2 9 4 Energy Gun 7 | 2 4 1 Energy Cannon . | . . . Ballistic Gun . | . . . Ballistic Cannon . | . . . Launcher 7 | . 5 2 Special Weapon . | . . . Impact Weapon . | . . . Slashing Weapon 1 | . . 1 Piercing Weapon . | . . . Special Melee Weapon . | . . . Unidentified Prototypes . | . . . Parts Lost 6 | . 1 5 Power 1 | . . 1 Propulsion 2 | . . 2 Utility . | . . . Weapon 3 | . 1 2 Highest Loss Streak 2 | . 1 2 To Critical Strikes . | . . . Average Slot Usage (%) 88 | . 94 79 Engine 10 | . 14 5 Treads 13 | . 13 13 Wheel 11 | . 14 7 Storage 14 | . 14 14 Processor 13 | . 13 14 Energy Gun 15 | . 22 4 Launcher 2 | . . 6 Slashing Weapon 5 | . . 13 Peak Build Rating 11 | 6 10 11 Average Rating 9 | 4 9 9 On Entrance 5 | . 6 10 Naked Turns . | . . . Heaviest Build 88 | 12 88 88 Greatest Support 26 | 26 26 20 Greatest Overweight (x) 8 | 3 8 8 Average Overweight (x) 4 | . 4 6 Largest Inventory Capacity 25 | 8 25 25 Average Capacity 20 | 7 19 25 Most Carried 23 | 6 23 23 Average Carried 16 | 2 15 20 Final Capacity 25 | 8 25 25 Final Carried 23 | 6 23 20 Class Distribution -------------------- 100% | Mutant Dominant Class ---------------- Mutant | -10/Materials Mutant | -10/Mines Resources | -11 -10 -10 ----------- Run | Yrd Mat Min Matter Collected 520 | 280 120 120 Remotely . | . . . Salvage Created 644 | 82 406 156 Parts 43 | 3 31 9 Haulers Intercepted 1 | . 1 . Recyclers Shooed 1 | . 1 . Parts Field Recycled . | . . . Retrieved Matter . | . . . Parts Self-Destructed . | . . . Prevented . | . . . Kills | -11 -10 -10 ------- Run | Yrd Mat Min Combat Hostiles Destroyed 19 | . 9 10 Melee 4 | . . 4 Guns 3 | . 2 1 AOE 12 | . 7 5 Classes Destroyed 9 | 1 7 1 Builder 1 | . 1 . Tunneler 1 | . . 1 Hauler 1 | . 1 . Recycler 1 | 1 . . Mechanic 1 | . 1 . Operator 1 | . 1 . Watcher 3 | . 3 . Swarmer 9 | . 3 6 Grunt 10 | . 6 4 Best Kill Streak 4 | 1 4 3 Combat Bots Only 3 | . 3 3 Max Kills in Single Turn 2 | 1 2 1 Gunslinging . | . . . Exploded 2 | . 2 1 Melee 1 | . . 1 Uniques/NPCs Destroyed . | . . . Combat | -11 -10 -10 -------- Run | Yrd Mat Min Hostile Shots Fired 121 | . 24 97 Missed 39 | . 8 31 Damage Taken 950 | . 227 723 Core 256 | . 43 213 Absorbed by Shields . | . . . Core Remaining (%) 100 | 100 . . Volleys Fired 50 | 2 31 17 Largest 2 | 2 2 1 Hottest 80 | 80 80 65 Shots Fired 79 | 4 58 17 Gun 58 | 4 50 4 Cannon . | . . . Launcher 21 | . 8 13 Special . | . . . Kinetic . | . . . Thermal 4 | . . 4 Explosive 21 | . 8 13 Electromagnetic 54 | 4 50 . Robot Hit Streak 9 | 1 7 9 Robot Miss Streak 3 | 1 3 2 Penetration Max . | . . . Secondary Targets . | . . . Shots Hit Robots 58 | 2 32 24 Core Hits 45 | 2 27 16 Critical Kills . | . . . Critical Parts Destroyed . | . . . Critical Strikes 1 | . . 1 Burn 1 | . . 1 Melee Attacks 20 | . . 20 Impact . | . . . Slashing 20 | . . 20 Piercing . | . . . Sneak Attacks 1 | . . 1 Combat Hostiles . | . . . Follow-up Attacks . | . . . Damage Inflicted 1907 | 25 962 920 Guns 568 | 25 483 60 Cannons . | . . . Explosions 1106 | . 479 627 Melee 233 | . . 233 Ramming . | . . . Kinetic . | . . . Thermal 80 | . 20 60 Explosive 1086 | . 459 627 Electromagnetic 508 | 25 483 . Impact . | . . . Slashing 233 | . . 233 Piercing . | . . . Highest Corruption . | . . . Average Corruption . | . . . Corruption Purged . | . . . Corruption Blocked . | . . . Overload Shots . | . . . Overflow Damage 32 | . 15 17 Projectiles . | . . . Explosions 15 | . 15 . Melee 17 | . . 17 Knockbacks . | . . . Impact . | . . . Kinetic . | . . . Secondary . | . . . Self-Inflicted Damage 136 | . 28 108 Shots 5 | . 2 3 Rammed . | . . . Targets Rammed . | . . . Kicked . | . . . Crushed . | . . . Highest Temperature 84 | 36 72 84 Average Temperature 25 | 20 24 48 Received Heat Transfer 225 | . 90 135 Siege Activations . | . . . Robots Corrupted . | . . . Combat Hostiles . | . . . Parts Fried . | . . . Impact Corruptions . | . . . Robots Melted . | . . . Combat Hostiles . | . . . Parts Melted . | . . . Heat Transferred 272 | . 50 222 Parts Sabotaged . | . . . Parts Stolen . | . . . Parts Stripped . | . . . Power Chain Reactions 1 | . 1 . Alert | -11 -10 -10 ------- Run | Yrd Mat Min Peak Influence 234 | 5 234 170 Initial 3 | . 3 . Average 84 | 1 71 111 Maximum Alert Level 1 | . 1 . Low Security (%) 99 | 100 98 100 Level 1 . | . 1 . Level 2 . | . . . Level 3 . | . . . Level 4 . | . . . Level 5 . | . . . High Security . | . . . Max Security . | . . . Squads Dispatched 1 | . 1 . Investigation . | . . . Extermination . | . . . Reinforcement 1 | . 1 . Assault . | . . . Garrison . | . . . Intercept . | . . . Searches Triggered . | . . . Construction Impeded . | . . . Haulers Reinforced . | . . . Active Scanning Responses . | . . . Cargo Convoy Interrupts . | . . . Stealth | -11 -10 -10 --------- Run | Yrd Mat Min Distress Signals . | . . . Communications Jammed . | . . . Distress Signals . | . . . Times Spotted 30 | . 16 14 Peak Tracking Total 4 | . 4 3 Tactical Retreats 1 | . . 1 Traps | -11 -10 -10 ------- Run | Yrd Mat Min Traps Triggered 1 | . 1 . Indirectly . | . . . Trap Hack Attempts . | . . . Triggered . | . . . Disarmed . | . . . Reprogrammed . | . . . Reused . | . . . Traps Extracted . | . . . Installed . | . . . Triggered . | . . . Machines | -11 -10 -10 ---------- Run | Yrd Mat Min Machines Disabled 1 | . 1 . Max in Single Turn 1 | . 1 . Machines Repaired . | . . . Machines Dismantled . | . . . Machines Sabotaged . | . . . Overloaded Fab Kills . | . . . Hacking | -11 -10 -10 --------- Run | Yrd Mat Min Machines Accessed 8 | . 8 . Terminals 7 | . 7 . Fabricators . | . . . Repair Stations . | . . . Recycling Units 1 | . 1 . Scanalyzers . | . . . Garrison Access . | . . . Total Hacks 22 | . 22 . Successful 9 | . 9 . Failed 13 | . 13 . Catastrophic 1 | . 1 . Database Lockouts . | . . . Manual 22 | . 22 . Terminals 21 | . 21 . Fabricators . | . . . Repair Stations . | . . . Recycling Units 1 | . 1 . Scanalyzers . | . . . Garrison Access . | . . . Terminal Hacks . | . . . Fabricator Hacks . | . . . Repair Station Hacks . | . . . Recycling Unit Hacks . | . . . Scanalyzer . | . . . Garrison Access Hacks . | . . . Unauthorized Hacks 9 | . 9 . Terminals 9 | . 9 . Assimilate 1 | . 1 . Botnet 6 | . 6 . Skim 2 | . 2 . Fabricators . | . . . Repair Stations . | . . . Recycling Units . | . . . Scanalyzers . | . . . Garrison Access . | . . . Data Cores Recovered 1 | . 1 . Used . | . . . Hacking Detections 8 | . 8 . Full Trace Events 1 | . 1 . Feedback Events . | . . . Feedback Blocked . | . . . Robot Schematics Acquired . | . . . Robots Built . | . . . Authchips . | . . . Time . | . . . Total Robot Build Rating . | . . . Part Schematics Acquired . | . . . Parts Built . | . . . Authchips . | . . . Time . | . . . Total Part Build Rating . | . . . Parts Repaired . | . . . Time . | . . . Parts Recycled . | . . . Recycled Matter . | . . . Retrieved Matter . | . . . Retrieved Components . | . . . Parts Scanalyzed . | . . . Part Schematics Acquired . | . . . Parts Damaged . | . . . Bothacking | -11 -10 -10 ------------ Run | Yrd Mat Min Used RIF Installer . | . . . Robots Hacked . | . . . Non-combat . | . . . Combat . | . . . Robot Hacks Applied . | . . . Relay Couplers Released . | . . . Fabnet Peak Effective % . | . . . Robots Rewired . | . . . Allies Hacked . | . . . Hacks Repelled . | . . . Allies | -11 -10 -10 -------- Run | Yrd Mat Min Total Allies . | . . . Largest Group . | . . . Highest-Rated Group . | . . . Highest-Rated Ally . | . . . Total Orders . | . . . Ally Attacks . | . . . Total Damage . | . . . Kills . | . . . Allies Corrupted . | . . . Allies Melted . | . . . Intel | -11 -10 -10 ------- Run | Yrd Mat Min Robot Analysis Total . | . . . Derelict Logs Recovered . | . . . Drone Launches . | . . . Drone Recoveries . | . . . Exploration | -11 -10 -10 ------------- Run | Yrd Mat Min Turns Passed 2126 | 85 1216 825 Spaces Moved 941 | 51 639 251 Core 22 | 22 . . Treads 148 | 4 71 73 Legs . | . . . Wheels 771 | 25 568 178 Hover . | . . . Flight . | . . . Fastest Speed 50 | 50 90 200 Average Speed 186 | 121 155 281 Slowest Speed 480 | 200 240 480 Overloaded Moves . | . . . Propulsion Burnouts . | . . . Robots Hopped . | . . . Cave-ins Triggered . | . . . Exploration Rate (%) 48 | 5 91 50 Regions Visited 2 Branch Regions 1 Pre-discovered Areas . | . . . Known Exits Taken . | . . . Unknown Exits Taken 2 | 1 1 . Scrap Searched . | . . . Spaces Dug 9 | . 9 . Terrain Destroyed 133 | . 50 83 Melee . | . . . Projectile . | . . . AOE 133 | . 50 83 Terrain Rammed . | . . . Walls Destroyed . | . . . Machines Disabled . | . . . Actions | -11 -10 -10 --------- Run | Yrd Mat Min Total 1183 | 66 804 313 Wait 112 | . 94 18 Move 939 | 50 638 251 Hop . | . . . Pick Up 24 | 5 19 . Fast Attach 10 | 7 2 1 Attach 6 | . 1 5 Detach 3 | 1 1 1 Swap 13 | 1 12 . Drop 6 | . 6 . Fire 50 | 2 31 17 Melee 20 | . . 20 Ram . | . . . Kick . | . . . Crush . | . . . Escape Stasis . | . . . Rewire . | . . . Trap . | . . . Miscellaneous . | . . . Route ------- -11/Scrapyard -10/Materials (discovered 5 exits: [*Mat x3] / [*Min x2]) -10/Mines (discovered 1 exit: [*Mat]) History --------- Turn | Location | Event 24 | -11/Scrapyard | Discovered new exit (range 15) 86 | -11/Scrapyard | Entered Materials 334 | -10/Materials | Build established: Mutant 499 | -10/Materials | Discovered new exit (range 4) 617 | -10/Materials | Discovered new exit (range 11) 751 | -10/Materials | Discovered new exit (range 5) 983 | -10/Materials | Discovered new exit (range 10) 1126 | -10/Materials | Discovered new exit (range 8) 1302 | -10/Materials | Entered Mines 1741 | -10/Mines | Core integrity fell below 50% 1821 | -10/Mines | Core integrity fell below 20% 1894 | -10/Mines | Discovered new exit (range 15) 2127 | -10/Mines | Destroyed by S-10 Pest with Light Assault Rifle Last Messages --------------- 01752_ R-06 Scavenger collects Lgt. Assault Rifle. 01763_ Acquired 13 matter. 01792_ G-47 Trooper destroyed. 01795_ Acquired 52 matter. 01799_ Sneak attack on T-07 Excavator. 01799_ Destroyed Mining Laser. 01799_ T-07 Excavator destroyed. 01822_ G-34 Mercenary destroyed. 01825_ Acquired 44 matter. 01832_ K-01 Serf collects debris. 01850_ Acquired Particle Gun. 01853_ K-01 Serf collects debris. 01894_ EXIT=FOUND 01898_ K-01 Serf collects debris. 01901_ R-06 Scavenger collects Aluminum Leg. 01903_ K-01 Serf collects debris. 02086_ Acquired 11 matter. 02120_ S-10 Pest suffers critical hit (Burn). 02120_ S-10 Pest destroyed. 02121_ K-01 Serf collects debris. Map ----- +----------------------------------------------------+ | ?????## ##?# ##???????????? | | ?????# ### ###### ### #???????????? | | ?????# #????# #?## ##???????????? | | ?????## #### #????# #??## ##????????????? | | ??????#######??# ###### #??## ##?????????????? | | ???????????????# ## #### ##?????????????? | | ???????????????##### ## ##########????? | | ???????????????????# ######## #????? | | ???????????????????# #??????## #????? | | ???????????????????# #???????## #### | | ???????????????????# #????????## ##?????? ? | | ???????????????????# #??????????###???????????? | | ???????????????????# #????????????????????????? | | ???????????????????# #????????????????????????? | | ?????????????????### #????????????????????????? | | ??????????????#### ##???????????????????????? | | ?????????????## % ##??????????????????????? | | ????????????## #??????????????????????? | | ????????##### #??????????????????????? | | ???????## #??????????????????????? | | ??????## #??????????????????????? | | ?????## ### ##?????????????????????? | | ???### ##?##! ## % #######???????????????? | | ??## ##???# #### ##??????????????? | | ??# ##????# #??## t #??????????????? | | ??# #?????# #???# @ #??????????????? | | ??# ##????# #???# ##??????????????? | | ??# #????# #???# #???????????????? | | ??# ##???# #???# #???????????????? | | ??## ##### #???# ##???????????????? | | ???## #???# ###????????????????? | | ????## #### #???# ##??????????????????? | | ?????## #??# #??? k#???????????????????? | | ??????## #??# #??? s ???????????????????? | | ???????## #### #??? s ??????????????????? | | ???###??# #??? ??????????????????? | | ??## ### ######??# ??????????????????? | | ??# < #???????## ?????????????????? | | ??# #?????????# ?????????????????? | | ??## #??????????# ???????????????????? | | ???## ##???????????##?????????????????????? | | ????#######???????????????????????????????????? | | ??????????????????????????????????????????????? | | ??????????????????????????????????????????????? | | | | | | | | | | | | | +----------------------------------------------------+ Best States ------------- Heat Dissipation 25 Energy Generation 10 Energy Capacity 125 Matter Stores 300 Matter Capacity 300 Sight Range 16 Terrain Scan Density 10 Evasion (%) 42 Targeting Accuracy 6 Recoil Reduction 1 Item Schematics ----------------- None Robot Schematics ------------------ None Fabricated ------------ Nothing Alien Tech Used ----------------- None Achievements -------------- None Challenges ------------ None Game ------ Seed SpliceReactionNullifier Manual? 0 Play Time 00:14:52 Cumulative 22.1 hours Start 2024.11.08 @ 11:40:50 End 2024.11.08 @ 11:53:47 Sessions 1 Manual Loads 0 Difficulty Rogue Special Mode None Game No. 44 Rogue 44 Adventurer 0 Explorer 0 Win Type - Total 0 Types 0/0/0/0/0/0/0/0/0 Lore% 19 Gallery% 22 Achievement% 28 Wizard Run 0 Options --------- Layout 0 ASCII 0 Keyboard 0 Movement Mouse Keybinds 0 Fullscreen 1 Font 24/Smallcaps Map View 91x25 Zoom Use 96% Tactical HUD 1 Map Filters NONE Filters NONE Steam 1 RUN: 2b7cc979-f32b-4ed0-a53b-b169c7883dea